[Event "Early-Titled-Tuesday-Blitz-January-30-2024"]
[Site "Chess.com"]
[Date "2024.01.30"]
[Round "6"]
[White "Crazy_girl99"]
[Black "GMSrinath"]
[Result "0-1"]
[WhiteElo "2614"]
[BlackElo "2832"]
[TimeControl "180+1"]
[EndTime "9:08:31 PST"]
[Termination "GMSrinath won by resignation"]

1. Nf3 {[%clk 0:02:57.7]} 1... d5 {[%clk 0:02:58.7]} 2. d4 {[%clk 0:02:56.5]}
2... Nf6 {[%clk 0:02:52.2]} 3. g3 {[%clk 0:02:56.4]} 3... g6 {[%clk 0:02:47.1]}
4. Bg2 {[%clk 0:02:56.6]} 4... Bg7 {[%clk 0:02:46.8]} 5. O-O {[%clk 0:02:56.8]}
5... O-O {[%clk 0:02:47.4]} 6. b3 {[%clk 0:02:56.6]} 6... c5 {[%clk 0:02:45.3]}
7. Bb2 {[%clk 0:02:56.8]} 7... Ne4 {[%clk 0:02:39.3]} 8. e3 {[%clk 0:02:49.8]}
8... Nc6 {[%clk 0:02:38.6]} 9. Nbd2 {[%clk 0:02:38.5]} 9... cxd4 {[%clk
0:02:37.1]} 10. Nxe4 {[%clk 0:02:38.4]} 10... dxe4 {[%clk 0:02:35.7]} 11. Nxd4
{[%clk 0:02:38.6]} 11... Nxd4 {[%clk 0:02:19.7]} 12. exd4 {[%clk 0:02:37.2]}
12... f5 {[%clk 0:02:18.4]} 13. c4 {[%clk 0:02:34.2]} 13... Bd7 {[%clk
0:02:10.7]} 14. Qd2 {[%clk 0:02:33.9]} 14... Qc7 {[%clk 0:02:07.5]} 15. Rad1
{[%clk 0:02:27.3]} 15... Rad8 {[%clk 0:02:07.7]} 16. Ba3 {[%clk 0:02:19.3]}
16... Rf7 {[%clk 0:02:01.1]} 17. Rfe1 {[%clk 0:02:12.2]} 17... e6 {[%clk
0:01:48.8]} 18. f3 {[%clk 0:02:08.8]} 18... Bc6 {[%clk 0:01:48.4]} 19. Qf2
{[%clk 0:01:45.6]} 19... exf3 {[%clk 0:01:37]} 20. Bxf3 {[%clk 0:01:45.5]} 20...
Bxf3 {[%clk 0:01:37.2]} 21. Qxf3 {[%clk 0:01:45.8]} 21... Bxd4+ {[%clk
0:01:37.8]} 22. Rxd4 {[%clk 0:01:41.5]} 22... Rxd4 {[%clk 0:01:35]} 23. Rxe6
{[%clk 0:01:42.1]} 23... Rd8 {[%clk 0:01:02.6]} 24. Bb2 {[%clk 0:01:35.7]} 24...
Qc5+ {[%clk 0:00:40.4]} 25. Kf1 {[%clk 0:01:27.9]} 25... Rfd7 {[%clk 0:00:36.1]}
26. Bc3 {[%clk 0:00:33.7]} 26... Rd3 {[%clk 0:00:29.2]} 27. Re8+ {[%clk
0:00:28.5]} 27... Rxe8 {[%clk 0:00:24.9]} 28. Qxd3 {[%clk 0:00:28.3]} 28... Qe7
{[%clk 0:00:16.7]} 29. Qd5+ {[%clk 0:00:18.9]} 29... Qe6 {[%clk 0:00:16.2]} 30.
Qd3 {[%clk 0:00:14.4]} 30... Qe4 {[%clk 0:00:15.3]} 0-1

[Event "Early-Titled-Tuesday-Blitz-January-30-2024"]
[Site "Chess.com"]
[Date "2024.01.30"]
[Round "6"]
[White "Flaccidmoves"]
[Black "Sofia_Blokhin"]
[Result "1-0"]
[WhiteElo "2452"]
[BlackElo "2254"]
[TimeControl "180+1"]
[EndTime "9:08:32 PST"]
[Termination "Flaccidmoves won by resignation"]

1. e4 {[%clk 0:03:00.9]} 1... c5 {[%clk 0:02:59.5]} 2. Nf3 {[%clk 0:03:01.3]}
2... e6 {[%clk 0:02:59.8]} 3. d4 {[%clk 0:03:01.7]} 3... cxd4 {[%clk 0:03:00.1]}
4. Nxd4 {[%clk 0:03:02.6]} 4... a6 {[%clk 0:03:00.6]} 5. Nc3 {[%clk 0:03:02.9]}
5... Qc7 {[%clk 0:03:00.8]} 6. g3 {[%clk 0:02:59.9]} 6... Nf6 {[%clk 0:03:00]}
7. Bg2 {[%clk 0:02:59.7]} 7... Nc6 {[%clk 0:02:58.4]} 8. O-O {[%clk 0:02:58.6]}
8... Be7 {[%clk 0:02:52.2]} 9. Re1 {[%clk 0:02:35.6]} 9... O-O {[%clk
0:02:31.6]} 10. Nxc6 {[%clk 0:02:24.6]} 10... dxc6 {[%clk 0:02:10.6]} 11. e5
{[%clk 0:02:20.3]} 11... Nd7 {[%clk 0:02:05.3]} 12. f4 {[%clk 0:02:17.7]} 12...
Bc5+ {[%clk 0:02:01.8]} 13. Kh1 {[%clk 0:02:14.7]} 13... f6 {[%clk 0:01:55.9]}
14. exf6 {[%clk 0:02:07.2]} 14... Nxf6 {[%clk 0:01:52.6]} 15. Be3 {[%clk
0:02:03]} 15... Bd6 {[%clk 0:01:49.3]} 16. Bd4 {[%clk 0:01:55.7]} 16... e5
{[%clk 0:01:10.6]} 17. fxe5 {[%clk 0:01:50.2]} 17... Ng4 {[%clk 0:01:08.4]} 18.
exd6 {[%clk 0:01:47.3]} 18... Qxd6 {[%clk 0:01:08.1]} 19. Bg1 {[%clk 0:01:07.8]}
19... Qh6 {[%clk 0:01:03.8]} 20. Rf1 {[%clk 0:01:05.1]} 20... Be6 {[%clk
0:00:27.8]} 21. Qd6 {[%clk 0:01:00]} 21... Rfd8 {[%clk 0:00:19]} 22. Qf4 {[%clk
0:00:57.2]} 22... g5 {[%clk 0:00:18.5]} 23. Qc7 {[%clk 0:00:46.6]} 23... Rd7
{[%clk 0:00:16.4]} 24. Qb6 {[%clk 0:00:43.1]} 24... Rad8 {[%clk 0:00:16]} 25.
Rae1 {[%clk 0:00:43.3]} 25... Bc4 {[%clk 0:00:14.4]} 26. Rf5 {[%clk 0:00:35.8]}
26... Rd2 {[%clk 0:00:12.1]} 27. Qxb7 {[%clk 0:00:33.7]} 27... R8d7 {[%clk
0:00:11.1]} 28. Qc8+ {[%clk 0:00:33.3]} 28... Rd8 {[%clk 0:00:11.3]} 29. Re8+
{[%clk 0:00:33.6]} 29... Rxe8 {[%clk 0:00:06.6]} 30. Qxe8+ {[%clk 0:00:34.5]}
30... Kg7 {[%clk 0:00:05.4]} 31. Qf8+ {[%clk 0:00:34.9]} 31... Kg6 {[%clk
0:00:05.9]} 32. Qxh6+ {[%clk 0:00:25]} 32... Kxh6 {[%clk 0:00:06.2]} 33. Rc5
{[%clk 0:00:23.8]} 33... Bd5 {[%clk 0:00:04.5]} 34. Nxd5 {[%clk 0:00:23.2]}
34... cxd5 {[%clk 0:00:04.6]} 35. h3 {[%clk 0:00:23.9]} 35... Nf2+ {[%clk
0:00:03.7]} 36. Bxf2 {[%clk 0:00:23.5]} 36... Rxf2 {[%clk 0:00:03.8]} 37. Bxd5
{[%clk 0:00:23.6]} 1-0

[Event "Early-Titled-Tuesday-Blitz-January-30-2024"]
[Site "Chess.com"]
[Date "2024.01.30"]
[Round "6"]
[White "Natalya_Buksa"]
[Black "RaulPerezGuerra"]
[Result "0-1"]
[WhiteElo "2571"]
[BlackElo "2503"]
[TimeControl "180+1"]
[EndTime "9:08:34 PST"]
[Termination "RaulPerezGuerra won by resignation"]

1. d4 {[%clk 0:03:00.9]} 1... d5 {[%clk 0:02:59.2]} 2. Nc3 {[%clk 0:03:00.2]}
2... Nf6 {[%clk 0:02:57.5]} 3. Bf4 {[%clk 0:03:00.8]} 3... e6 {[%clk 0:02:55.9]}
4. Nb5 {[%clk 0:03:01]} 4... Na6 {[%clk 0:02:55.1]} 5. e3 {[%clk 0:03:01.6]}
5... Be7 {[%clk 0:02:55]} 6. Nf3 {[%clk 0:03:01.6]} 6... O-O {[%clk 0:02:55]} 7.
Be2 {[%clk 0:02:59.9]} 7... Ne4 {[%clk 0:02:48.9]} 8. a4 {[%clk 0:02:59.3]} 8...
c6 {[%clk 0:02:48.9]} 9. Na3 {[%clk 0:02:59.6]} 9... Bd6 {[%clk 0:02:41.4]} 10.
O-O {[%clk 0:02:58.8]} 10... Bxf4 {[%clk 0:02:40]} 11. exf4 {[%clk 0:02:59.7]}
11... Qd6 {[%clk 0:02:39.9]} 12. Ne5 {[%clk 0:02:59.7]} 12... c5 {[%clk
0:02:39.2]} 13. c3 {[%clk 0:02:57.5]} 13... cxd4 {[%clk 0:02:38.5]} 14. Nb5
{[%clk 0:02:58]} 14... Qe7 {[%clk 0:02:35.4]} 15. Nxd4 {[%clk 0:02:57.3]} 15...
Nac5 {[%clk 0:02:35.7]} 16. b4 {[%clk 0:02:56.4]} 16... Nd7 {[%clk 0:02:35.7]}
17. Qd3 {[%clk 0:02:49.9]} 17... a5 {[%clk 0:02:33.2]} 18. Rfb1 {[%clk
0:02:44.5]} 18... b6 {[%clk 0:02:32.7]} 19. Bf3 {[%clk 0:02:35.6]} 19... Ba6
{[%clk 0:02:31.8]} 20. b5 {[%clk 0:02:34]} 20... Ndc5 {[%clk 0:02:28.2]} 21. Qe3
{[%clk 0:02:32]} 21... Bb7 {[%clk 0:02:28.2]} 22. Ndc6 {[%clk 0:02:30.6]} 22...
Qc7 {[%clk 0:02:26.2]} 23. c4 {[%clk 0:02:27.3]} 23... f6 {[%clk 0:02:24.1]} 24.
Nd3 {[%clk 0:02:25.5]} 24... Nxd3 {[%clk 0:02:12.8]} 25. Qxd3 {[%clk 0:02:22.1]}
25... Nc5 {[%clk 0:02:11.7]} 26. Qe2 {[%clk 0:02:18.6]} 26... Bxc6 {[%clk
0:02:07.7]} 27. bxc6 {[%clk 0:02:18.4]} 27... Qxc6 {[%clk 0:02:08.6]} 28. cxd5
{[%clk 0:02:18.3]} 28... exd5 {[%clk 0:02:08.8]} 29. Rd1 {[%clk 0:02:18.9]}
29... Rad8 {[%clk 0:02:08.1]} 30. Qc2 {[%clk 0:02:17]} 30... Rd6 {[%clk
0:02:01.1]} 31. Rd4 {[%clk 0:02:16.3]} 31... Ne4 {[%clk 0:01:57.2]} 32. Bxe4
{[%clk 0:02:13.7]} 32... dxe4 {[%clk 0:01:56.4]} 33. Qxc6 {[%clk 0:02:06.9]}
33... Rxc6 {[%clk 0:01:56.3]} 34. Rxe4 {[%clk 0:02:07.6]} 34... Rfc8 {[%clk
0:01:54.9]} 35. g3 {[%clk 0:02:07.9]} 35... Rc4 {[%clk 0:01:53.7]} 36. Re6
{[%clk 0:02:06.3]} 36... R8c6 {[%clk 0:01:53.2]} 37. Rxc6 {[%clk 0:02:05.4]}
37... Rxc6 {[%clk 0:01:52.2]} 38. Rb1 {[%clk 0:02:04.9]} 38... Rc4 {[%clk
0:01:49.1]} 39. Rxb6 {[%clk 0:02:04.1]} 39... Rxa4 {[%clk 0:01:49.7]} 40. f5
{[%clk 0:02:04.5]} 40... Rb4 {[%clk 0:01:46.1]} 41. Ra6 {[%clk 0:02:03.9]} 41...
Rb5 {[%clk 0:01:46]} 42. g4 {[%clk 0:02:04.3]} 42... h5 {[%clk 0:01:45.8]} 43.
h3 {[%clk 0:02:04.7]} 43... Kh7 {[%clk 0:01:44.7]} 44. Kg2 {[%clk 0:02:04.6]}
44... Kh6 {[%clk 0:01:44.1]} 45. Kg3 {[%clk 0:02:01.7]} 45... Rb3+ {[%clk
0:01:42.1]} 46. f3 {[%clk 0:02:01.7]} 46... Rb5 {[%clk 0:01:42.8]} 47. Ra8
{[%clk 0:01:51.3]} 47... Kh7 {[%clk 0:01:36.3]} 48. Kh4 {[%clk 0:01:44.3]} 48...
Rb3 {[%clk 0:01:35.4]} 49. Kg3 {[%clk 0:01:35.6]} 49... hxg4 {[%clk 0:01:30]}
50. hxg4 {[%clk 0:01:34.3]} 50... Ra3 {[%clk 0:01:26.6]} 51. Kf4 {[%clk
0:01:33.4]} 51... Ra4+ {[%clk 0:01:24.8]} 52. Kg3 {[%clk 0:01:33.6]} 52... Ra3
{[%clk 0:01:25]} 53. Ra6 {[%clk 0:01:31.8]} 53... a4 {[%clk 0:01:24.7]} 54. Kf4
{[%clk 0:01:29.7]} 54... Ra1 {[%clk 0:01:24.8]} 55. Ra8 {[%clk 0:01:18.9]} 55...
a3 {[%clk 0:01:24.5]} 56. Ra4 {[%clk 0:01:17.5]} 56... a2 {[%clk 0:01:21.9]} 57.
Ra7 {[%clk 0:01:17]} 57... Kg8 {[%clk 0:01:18.3]} 58. Ra8+ {[%clk 0:00:56.2]}
58... Kf7 {[%clk 0:01:18.3]} 59. Ra7+ {[%clk 0:00:57.1]} 59... Ke8 {[%clk
0:01:15.3]} 60. Ra3 {[%clk 0:00:49.2]} 60... Kd7 {[%clk 0:01:14.6]} 61. Rd3+
{[%clk 0:00:49.6]} 61... Kc6 {[%clk 0:01:14.6]} 62. Rd2 {[%clk 0:00:50.3]} 62...
Kc5 {[%clk 0:01:13.5]} 63. Rg2 {[%clk 0:00:50.8]} 63... Kc4 {[%clk 0:01:11]} 64.
g5 {[%clk 0:00:51.1]} 64... Kb3 {[%clk 0:01:09.4]} 65. gxf6 {[%clk 0:00:42.2]}
65... gxf6 {[%clk 0:01:10.3]} 66. Re2 {[%clk 0:00:40.7]} 66... Rc1 {[%clk
0:01:08]} 67. Re3+ {[%clk 0:00:40.2]} 67... Rc3 {[%clk 0:01:07.9]} 68. Re1
{[%clk 0:00:40.3]} 68... Kb2 {[%clk 0:01:07.3]} 69. Kg4 {[%clk 0:00:40.9]} 69...
a1=Q {[%clk 0:01:05.8]} 70. Rxa1 {[%clk 0:00:41.4]} 70... Kxa1 {[%clk
0:01:06.6]} 71. Kh5 {[%clk 0:00:42.3]} 71... Kb2 {[%clk 0:01:05.5]} 72. Kg6
{[%clk 0:00:43.2]} 72... Rc6 {[%clk 0:01:05.8]} 73. Kf7 {[%clk 0:00:43.9]} 73...
Kc3 {[%clk 0:01:06.1]} 74. Ke7 {[%clk 0:00:44.8]} 74... Kd4 {[%clk 0:01:06.2]}
75. Kd7 {[%clk 0:00:45.7]} 75... Ra6 {[%clk 0:01:06.3]} 0-1

[Event "Early-Titled-Tuesday-Blitz-January-30-2024"]
[Site "Chess.com"]
[Date "2024.01.30"]
[Round "6"]
[White "Alen_Yeremyann"]
[Black "GroovyKettle"]
[Result "0-1"]
[WhiteElo "2739"]
[BlackElo "2972"]
[TimeControl "180+1"]
[EndTime "9:08:35 PST"]
[Termination "GroovyKettle won on time"]

1. e4 {[%clk 0:03:00.9]} 1... c5 {[%clk 0:02:58.8]} 2. Nc3 {[%clk 0:03:00.3]}
2... d6 {[%clk 0:02:57.7]} 3. f4 {[%clk 0:02:59.3]} 3... g6 {[%clk 0:02:56]} 4.
Nf3 {[%clk 0:02:59.5]} 4... Bg7 {[%clk 0:02:55.9]} 5. Bc4 {[%clk 0:03:00.2]}
5... Nc6 {[%clk 0:02:55.5]} 6. O-O {[%clk 0:02:59]} 6... e6 {[%clk 0:02:56.1]}
7. d3 {[%clk 0:02:58.1]} 7... Nge7 {[%clk 0:02:55.9]} 8. a4 {[%clk 0:02:56.9]}
8... O-O {[%clk 0:02:55.6]} 9. Bd2 {[%clk 0:02:55.2]} 9... Nd4 {[%clk
0:02:54.8]} 10. Nxd4 {[%clk 0:02:52.8]} 10... cxd4 {[%clk 0:02:54.9]} 11. Ne2
{[%clk 0:02:51.8]} 11... d5 {[%clk 0:02:55.4]} 12. exd5 {[%clk 0:02:52.3]} 12...
Nxd5 {[%clk 0:02:54.3]} 13. Ng3 {[%clk 0:02:50.1]} 13... Bd7 {[%clk 0:02:49]}
14. Qe2 {[%clk 0:02:48.2]} 14... Bc6 {[%clk 0:02:48.8]} 15. a5 {[%clk
0:02:40.3]} 15... Qd7 {[%clk 0:02:43.7]} 16. Ne4 {[%clk 0:02:38.6]} 16... Rac8
{[%clk 0:02:43]} 17. Rae1 {[%clk 0:02:36.4]} 17... b5 {[%clk 0:02:37.2]} 18.
axb6 {[%clk 0:02:35.5]} 18... axb6 {[%clk 0:02:38.1]} 19. Kh1 {[%clk 0:02:35.1]}
19... Ba4 {[%clk 0:02:34.6]} 20. b3 {[%clk 0:02:31.5]} 20... Bc6 {[%clk
0:02:34]} 21. b4 {[%clk 0:02:16.4]} 21... Ba4 {[%clk 0:02:31.3]} 22. Rc1 {[%clk
0:02:10.2]} 22... Rfd8 {[%clk 0:02:21.1]} 23. Rfe1 {[%clk 0:01:44.1]} 23... Rc7
{[%clk 0:02:18.2]} 24. Qf2 {[%clk 0:00:47.4]} 24... Nf6 {[%clk 0:01:56.9]} 25.
Ng5 {[%clk 0:00:41.3]} 25... Re8 {[%clk 0:01:55.4]} 26. Nf3 {[%clk 0:00:38.4]}
26... b5 {[%clk 0:01:46.7]} 27. Bb3 {[%clk 0:00:18.1]} 27... Bxb3 {[%clk
0:01:41.3]} 28. cxb3 {[%clk 0:00:19]} 28... Nd5 {[%clk 0:01:37.2]} 29. Ne5
{[%clk 0:00:08.9]} 29... Qe7 {[%clk 0:01:22]} 30. Qxd4 {[%clk 0:00:09.3]} 30...
Rec8 {[%clk 0:01:22.6]} 31. Rxc7 {[%clk 0:00:09.3]} 31... Qxc7 {[%clk
0:01:22.3]} 32. h3 {[%clk 0:00:06.4]} 32... Bh6 {[%clk 0:01:18.7]} 33. Rc1
{[%clk 0:00:06]} 33... Qxc1+ {[%clk 0:01:18.8]} 34. Bxc1 {[%clk 0:00:06.9]}
34... Rxc1+ {[%clk 0:01:19]} 35. Kh2 {[%clk 0:00:07.7]} 35... Bxf4+ {[%clk
0:01:19.4]} 36. g3 {[%clk 0:00:08.4]} 36... Rc2+ {[%clk 0:01:18.3]} 37. Kh1
{[%clk 0:00:08.1]} 37... Bxg3 {[%clk 0:01:15.5]} 38. Ng4 {[%clk 0:00:07.3]}
38... Rc1+ {[%clk 0:01:10]} 39. Kg2 {[%clk 0:00:07.3]} 39... Nf4+ {[%clk
0:01:10.6]} 40. Kf3 {[%clk 0:00:03.1]} 40... Rf1+ {[%clk 0:01:10.8]} 41. Ke4
{[%clk 0:00:03.1]} 41... f5+ {[%clk 0:01:09.1]} 42. Ke3 {[%clk 0:00:03.3]} 42...
fxg4 {[%clk 0:00:33]} 43. Qd8+ {[%clk 0:00:03.7]} 43... Kg7 {[%clk 0:00:33.1]}
44. Qe7+ {[%clk 0:00:02.9]} 44... Kh6 {[%clk 0:00:32.6]} 45. h4 {[%clk
0:00:02.5]} 45... Nd5+ {[%clk 0:00:32.3]} 0-1

[Event "Early-Titled-Tuesday-Blitz-January-30-2024"]
[Site "Chess.com"]
[Date "2024.01.30"]
[Round "6"]
[White "Sadykov_Ramil"]
[Black "LeoLV10"]
[Result "0-1"]
[WhiteElo "2598"]
[BlackElo "2466"]
[TimeControl "180+1"]
[EndTime "9:08:36 PST"]
[Termination "LeoLV10 won by resignation"]

1. d4 {[%clk 0:02:52.8]} 1... Nf6 {[%clk 0:03:00]} 2. Nc3 {[%clk 0:02:52.7]}
2... c5 {[%clk 0:02:57.3]} 3. d5 {[%clk 0:02:52.4]} 3... e6 {[%clk 0:02:53.7]}
4. e4 {[%clk 0:02:52.3]} 4... exd5 {[%clk 0:02:53.1]} 5. e5 {[%clk 0:02:52.8]}
5... d4 {[%clk 0:02:48.6]} 6. exf6 {[%clk 0:02:52.7]} 6... dxc3 {[%clk 0:02:49]}
7. Qe2+ {[%clk 0:02:53.3]} 7... Be7 {[%clk 0:02:47.2]} 8. Qxe7+ {[%clk
0:02:40.8]} 8... Qxe7+ {[%clk 0:02:47.4]} 9. fxe7 {[%clk 0:02:41.7]} 9... cxb2
{[%clk 0:02:47.1]} 10. Bxb2 {[%clk 0:02:42.6]} 10... Nc6 {[%clk 0:02:47.3]} 11.
Bxg7 {[%clk 0:02:41.3]} 11... Rg8 {[%clk 0:02:48.2]} 12. Bf6 {[%clk 0:02:39.8]}
12... d5 {[%clk 0:02:47.4]} 13. O-O-O {[%clk 0:02:22.3]} 13... Be6 {[%clk
0:02:45.1]} 14. Ne2 {[%clk 0:02:03.3]} 14... d4 {[%clk 0:02:34.7]} 15. Nf4
{[%clk 0:01:55.3]} 15... Bxa2 {[%clk 0:02:33.3]} 16. Bb5 {[%clk 0:01:50.8]}
16... Rc8 {[%clk 0:02:29.1]} 17. Rhe1 {[%clk 0:01:20.7]} 17... Kd7 {[%clk
0:02:22.3]} 18. c3 {[%clk 0:01:13.7]} 18... a6 {[%clk 0:02:07.8]} 19. Bd3 {[%clk
0:01:09.2]} 19... Be6 {[%clk 0:02:06.8]} 20. Bxh7 {[%clk 0:00:51.8]} 20... Rg4
{[%clk 0:02:05.4]} 21. Nxe6 {[%clk 0:00:40.9]} 21... fxe6 {[%clk 0:02:02.7]} 22.
Be4 {[%clk 0:00:35.4]} 22... Rf4 {[%clk 0:01:41]} 23. Bg5 {[%clk 0:00:28.5]}
23... Rxf2 {[%clk 0:01:40.6]} 24. Bf3 {[%clk 0:00:21.3]} 24... Nxe7 {[%clk
0:01:36.7]} 25. Bxb7 {[%clk 0:00:19.2]} 25... Rb8 {[%clk 0:01:34.7]} 26. Bxe7
{[%clk 0:00:15.3]} 26... Kxe7 {[%clk 0:01:33.6]} 27. Bd5 {[%clk 0:00:15.5]}
27... Rb6 {[%clk 0:01:31]} 28. cxd4 {[%clk 0:00:13.8]} 28... cxd4 {[%clk
0:01:30.2]} 29. Rxd4 {[%clk 0:00:14.1]} 29... Rd6 {[%clk 0:01:26.5]} 30. Rdd1
{[%clk 0:00:10.7]} 30... Rf5 {[%clk 0:01:25.3]} 31. Be4 {[%clk 0:00:10.4]} 31...
Rc5+ {[%clk 0:01:25.2]} 32. Bc2 {[%clk 0:00:10.6]} 32... Rdc6 {[%clk 0:01:25.6]}
33. Rd2 {[%clk 0:00:11]} 33... a5 {[%clk 0:01:26]} 34. h4 {[%clk 0:00:10.6]}
34... a4 {[%clk 0:01:22.5]} 35. Kb2 {[%clk 0:00:10.8]} 35... Rb6+ {[%clk
0:01:22.9]} 36. Ka2 {[%clk 0:00:10]} 36... Rb4 {[%clk 0:01:19]} 37. Re4 {[%clk
0:00:09.1]} 37... Rxc2+ {[%clk 0:01:19.1]} 38. Rxc2 {[%clk 0:00:08.6]} 38...
Rxe4 {[%clk 0:01:20]} 39. g3 {[%clk 0:00:08.5]} 39... Kf6 {[%clk 0:01:18.9]} 40.
Kb2 {[%clk 0:00:08.3]} 40... Rb4+ {[%clk 0:01:17.1]} 41. Kc1 {[%clk 0:00:06.9]}
41... Rb3 {[%clk 0:01:17.1]} 42. Rc4 {[%clk 0:00:05.2]} 42... a3 {[%clk
0:01:15]} 43. g4 {[%clk 0:00:05.2]} 43... Rh3 {[%clk 0:01:15.1]} 44. Ra4 {[%clk
0:00:03.6]} 44... Rxh4 {[%clk 0:01:13]} 45. Rxa3 {[%clk 0:00:03.8]} 45... Rxg4
{[%clk 0:01:13.6]} 46. Kd2 {[%clk 0:00:04.4]} 46... Rg2+ {[%clk 0:01:13.5]} 47.
Ke1 {[%clk 0:00:04.4]} 47... Kf5 {[%clk 0:01:13.8]} 48. Ra4 {[%clk 0:00:04.5]}
48... e5 {[%clk 0:01:14]} 49. Kf1 {[%clk 0:00:05.1]} 49... Rb2 {[%clk
0:01:13.1]} 50. Ke1 {[%clk 0:00:05.3]} 50... e4 {[%clk 0:01:13.2]} 51. Ra3
{[%clk 0:00:05.8]} 51... Kf4 {[%clk 0:01:13.7]} 52. Rc3 {[%clk 0:00:06]} 52...
Ra2 {[%clk 0:01:13.3]} 53. Kf1 {[%clk 0:00:06.1]} 53... Rd2 {[%clk 0:01:12.9]}
54. Rb3 {[%clk 0:00:06.5]} 54... Rd3 {[%clk 0:01:11.9]} 55. Rxd3 {[%clk
0:00:03.7]} 55... exd3 {[%clk 0:01:11.3]} 56. Kf2 {[%clk 0:00:03.1]} 56... Ke4
{[%clk 0:01:10.9]} 57. Kf1 {[%clk 0:00:01]} 57... Kf3 {[%clk 0:01:05]} 58. Ke1
{[%clk 0:00:01.1]} 58... Ke3 {[%clk 0:01:05.4]} 59. Kd1 {[%clk 0:00:01.7]} 59...
d2 {[%clk 0:01:06.1]} 0-1

[Event "Early-Titled-Tuesday-Blitz-January-30-2024"]
[Site "Chess.com"]
[Date "2024.01.30"]
[Round "6"]
[White "stasOR4ik"]
[Black "ChainedDowntohell"]
[Result "0-1"]
[WhiteElo "2419"]
[BlackElo "2592"]
[TimeControl "180+1"]
[EndTime "9:08:36 PST"]
[Termination "ChainedDowntohell won on time"]

1. e4 {[%clk 0:02:52.2]} 1... c5 {[%clk 0:02:56.9]} 2. c3 {[%clk 0:02:51.6]}
2... d5 {[%clk 0:02:51.3]} 3. exd5 {[%clk 0:02:51.7]} 3... Qxd5 {[%clk
0:02:51.9]} 4. Nf3 {[%clk 0:02:52.1]} 4... g6 {[%clk 0:02:51.7]} 5. d4 {[%clk
0:02:52.3]} 5... Bg7 {[%clk 0:02:51.8]} 6. Be3 {[%clk 0:02:47.3]} 6... cxd4
{[%clk 0:02:51.1]} 7. cxd4 {[%clk 0:02:47.2]} 7... Qa5+ {[%clk 0:02:49.5]} 8.
Nc3 {[%clk 0:02:47]} 8... Nh6 {[%clk 0:02:46.3]} 9. Bb5+ {[%clk 0:02:39.9]} 9...
Bd7 {[%clk 0:02:44.6]} 10. Bxd7+ {[%clk 0:02:39.9]} 10... Nxd7 {[%clk
0:02:44.2]} 11. Qb3 {[%clk 0:02:40.6]} 11... O-O {[%clk 0:02:25.5]} 12. Qxb7
{[%clk 0:02:36.2]} 12... Nf6 {[%clk 0:02:19]} 13. Bxh6 {[%clk 0:02:25.1]} 13...
Bxh6 {[%clk 0:02:16.5]} 14. O-O {[%clk 0:02:24]} 14... e6 {[%clk 0:02:04.3]} 15.
Rab1 {[%clk 0:02:05.1]} 15... Rab8 {[%clk 0:01:58.9]} 16. Qe7 {[%clk 0:02:01.5]}
16... Bg7 {[%clk 0:01:50]} 17. Ne5 {[%clk 0:01:57.7]} 17... Qa6 {[%clk
0:01:33.8]} 18. Rfd1 {[%clk 0:01:48.9]} 18... Rb7 {[%clk 0:01:25.8]} 19. Qc5
{[%clk 0:01:42.9]} 19... Nd7 {[%clk 0:01:22.4]} 20. Qc6 {[%clk 0:01:37.5]} 20...
Qxc6 {[%clk 0:01:15.2]} 21. Nxc6 {[%clk 0:01:38.4]} 21... Nb6 {[%clk 0:01:08]}
22. Nb5 {[%clk 0:01:12]} 22... a6 {[%clk 0:01:00.9]} 23. Nd6 {[%clk 0:01:12]}
23... Rd7 {[%clk 0:00:58.2]} 24. Ne4 {[%clk 0:01:03]} 24... Rc8 {[%clk
0:00:50.9]} 25. Nb4 {[%clk 0:00:45.7]} 25... a5 {[%clk 0:00:46.2]} 26. Nd3
{[%clk 0:00:44.4]} 26... Rxd4 {[%clk 0:00:43.3]} 27. f3 {[%clk 0:00:41.9]} 27...
Nc4 {[%clk 0:00:31.1]} 28. Kf2 {[%clk 0:00:05.2]} 28... Rcd8 {[%clk 0:00:26.3]}
29. Nec5 {[%clk 0:00:04.7]} 29... Bf8 {[%clk 0:00:20.3]} 30. Ke2 {[%clk
0:00:03.8]} 30... R4d5 {[%clk 0:00:12.1]} 31. Ne4 {[%clk 0:00:02.7]} 31... Bg7
{[%clk 0:00:07.5]} 32. b3 {[%clk 0:00:02.6]} 32... Nd6 {[%clk 0:00:03.3]} 0-1

[Event "Early-Titled-Tuesday-Blitz-January-30-2024"]
[Site "Chess.com"]
[Date "2024.01.30"]
[Round "6"]
[White "DeArron_Fox"]
[Black "Iana_Shirova"]
[Result "1-0"]
[WhiteElo "2467"]
[BlackElo "2200"]
[TimeControl "180+1"]
[EndTime "9:08:36 PST"]
[Termination "DeArron_Fox won by checkmate"]

1. d4 {[%clk 0:03:00.9]} 1... d5 {[%clk 0:02:58.1]} 2. c4 {[%clk 0:02:33.5]}
2... dxc4 {[%clk 0:02:56.4]} 3. e3 {[%clk 0:02:33.5]} 3... Be6 {[%clk
0:02:54.4]} 4. Nf3 {[%clk 0:02:06.3]} 4... Nf6 {[%clk 0:02:54.2]} 5. Nc3 {[%clk
0:02:04.3]} 5... c6 {[%clk 0:02:44.6]} 6. Ng5 {[%clk 0:01:57.1]} 6... Bd5 {[%clk
0:02:32.4]} 7. e4 {[%clk 0:01:57.3]} 7... h6 {[%clk 0:02:32]} 8. exd5 {[%clk
0:01:56.4]} 8... hxg5 {[%clk 0:02:32]} 9. dxc6 {[%clk 0:01:48.7]} 9... Nxc6
{[%clk 0:02:32.9]} 10. d5 {[%clk 0:01:08.7]} 10... Ne5 {[%clk 0:02:32.9]} 11.
Bxg5 {[%clk 0:01:06.5]} 11... Qd7 {[%clk 0:02:27]} 12. f4 {[%clk 0:00:29.2]}
12... Nd3+ {[%clk 0:01:34]} 13. Bxd3 {[%clk 0:00:27.8]} 13... cxd3 {[%clk
0:01:34.9]} 14. Qxd3 {[%clk 0:00:28.7]} 14... Ng8 {[%clk 0:01:35.1]} 15. f5
{[%clk 0:00:12.6]} 15... Rh5 {[%clk 0:01:31.6]} 16. h4 {[%clk 0:00:11.4]} 16...
f6 {[%clk 0:01:30.3]} 17. Qf3 {[%clk 0:00:07.3]} 17... Rh8 {[%clk 0:01:11.6]}
18. Be3 {[%clk 0:00:06.7]} 18... Nh6 {[%clk 0:01:03.3]} 19. g4 {[%clk
0:00:05.5]} 19... Nf7 {[%clk 0:01:03.4]} 20. O-O-O {[%clk 0:00:03.7]} 20... Ne5
{[%clk 0:01:03.5]} 21. Qe4 {[%clk 0:00:04.3]} 21... a6 {[%clk 0:00:50.7]} 22.
Kb1 {[%clk 0:00:04.2]} 22... b5 {[%clk 0:00:50.2]} 23. Rc1 {[%clk 0:00:03.7]}
23... Rc8 {[%clk 0:00:48.3]} 24. d6 {[%clk 0:00:02.1]} 24... exd6 {[%clk
0:00:46.5]} 25. Nd5 {[%clk 0:00:02.6]} 25... Rxc1+ {[%clk 0:00:37.3]} 26. Rxc1
{[%clk 0:00:03.5]} 26... Rxh4 {[%clk 0:00:37.6]} 27. Nc7+ {[%clk 0:00:03.5]}
27... Ke7 {[%clk 0:00:24.7]} 28. Ne6 {[%clk 0:00:02.2]} 28... Rxg4 {[%clk
0:00:21.4]} 29. Qa8 {[%clk 0:00:02]} 29... Ng6 {[%clk 0:00:17.6]} 30. Rc7 {[%clk
0:00:02.1]} 30... Re4 {[%clk 0:00:12.9]} 31. Rxd7+ {[%clk 0:00:01.8]} 31... Kxd7
{[%clk 0:00:13.8]} 32. Qxe4 {[%clk 0:00:02.4]} 32... Ne7 {[%clk 0:00:13.5]} 33.
Qb7+ {[%clk 0:00:02.8]} 33... Ke8 {[%clk 0:00:13.5]} 34. Qb8+ {[%clk 0:00:02.8]}
34... Kf7 {[%clk 0:00:14.4]} 35. Qxf8# {[%clk 0:00:03.7]} 1-0